fUSD/lending_fUSD_20250616
["ID","MTS","AMOUNT","RATE_DAILY","PERIOD"]
[366140158,1750084238452,-2941.87984567,0.00016338,2]
[366140159,1750084238462,-208.75494468,0.00016371,2]
[366140160,1750084238473,-2638.60076408,0.00016389,2]
[366140161,1750084238484,-3279.15230078,0.00016393,2]
[366140324,1750084240320,-1852.08061757,0.00016393,2]
[366140326,1750084240331,-151.0,0.00016418,2]
[366140328,1750084240340,-151.0,0.00016418,2]
[366140330,1750084240350,-200.0,0.00016418,2]
[366140332,1750084240359,-234.057945,0.00016418,2]
[366140334,1750084240369,-500.0,0.00016418,2]
[366140337,1750084240392,-151.0,0.00016418,2]
[366140340,1750084240404,-500.0,0.00016418,2]
[366140342,1750084240415,-500.0,0.00016418,2]
[366140344,1750084240426,-500.0,0.00016418,2]
[366140346,1750084240436,-500.0,0.00016418,2]
[366140348,1750084240445,-500.0,0.00016418,2]
[366140350,1750084240454,-1000.0,0.00016418,2]
[366140352,1750084240464,-500.0,0.00016418,2]
[366140354,1750084240474,-1000.0,0.00016418,2]
[366140356,1750084240484,-1000.0,0.00016418,2]
[366140358,1750084240494,-1000.0,0.00016418,2]
[366140360,1750084240504,-1000.0,0.00016418,2]
[366140362,1750084240514,-1000.0,0.00016418,2]
[366140364,1750084240525,-1000.0,0.00016418,2]
[366140366,1750084240534,-1000.0,0.00016418,2]
[366140368,1750084240544,-1000.0,0.00016418,2]
[366140370,1750084240554,-1000.0,0.00016418,2]
[366140372,1750084240563,-1000.0,0.00016418,2]
[366140374,1750084240573,-1000.0,0.00016418,2]
[366140376,1750084240582,-1000.0,0.00016418,2]
[366140378,1750084240592,-1000.0,0.00016418,2]
[366140380,1750084240602,-1000.0,0.00016418,2]
[366140382,1750084240611,-1000.0,0.00016418,2]
[366140384,1750084240622,-1000.0,0.00016418,2]
[366140386,1750084240632,-1000.0,0.00016418,2]
[366140388,1750084240642,-1000.0,0.00016418,2]
[366140390,1750084240651,-1000.0,0.00016418,2]
[366140392,1750084240661,-150.0,0.00016427,2]
[366140394,1750084240671,-150.0,0.00016428,2]
[366140396,1750084240680,-526.96,0.00016428,2]
[366140398,1750084240690,-526.96,0.00016428,2]
[366140400,1750084240699,-526.96,0.00016428,2]
[366140402,1750084240709,-526.96,0.00016428,2]
[366140404,1750084240719,-526.96,0.00016428,2]
[366140406,1750084240729,-287.13,0.00016428,2]
[366140408,1750084240741,-208.75494468,0.00016429,2]
[366140410,1750084240751,-936.158224,0.00016431,2]
[366140412,1750084240761,-150.0,0.00016432,2]
[366140414,1750084240770,-150.0,0.00016433,2]
[366140416,1750084240780,-642.93863137,0.00016437,2]
[366140418,1750084240790,-376.57143275,0.00016437,2]
[366140421,1750084240801,-367.48910717,0.00016437,2]
[366140423,1750084240811,-165.17557908,0.00016437,2]
[366140425,1750084240828,-500.0,0.00016438,2]
[366140427,1750084240839,-500.0,0.00016438,2]
[366140429,1750084240849,-500.0,0.00016438,2]
[366140431,1750084240859,-500.0,0.00016438,2]
[366140433,1750084240869,-500.0,0.00016438,2]
[366140435,1750084240879,-500.0,0.00016438,2]
[366140438,1750084240890,-500.0,0.00016438,2]
[366140440,1750084240900,-500.0,0.00016438,2]
[366140442,1750084240910,-500.0,0.00016438,2]
[366140444,1750084240920,-461.46997659,0.00016438,2]
[366140446,1750084240930,-500.0,0.00016438,2]
[366140448,1750084240941,-500.0,0.00016438,2]
[366140450,1750084240951,-490.70243725,0.00016438,2]
[366140452,1750084240961,-640.1,0.00016438,2]
[366140454,1750084240972,-490.0,0.00016438,2]
[366140456,1750084240982,-490.0,0.00016438,2]
[366140458,1750084240993,-490.0,0.00016438,2]
[366140460,1750084241003,-490.0,0.00016438,2]
[366140462,1750084241013,-250.0,0.00016438,2]
[366140464,1750084241023,-490.0,0.00016438,2]
[366140466,1750084241033,-490.0,0.00016438,2]
[366140468,1750084241043,-490.0,0.00016438,2]
[366140470,1750084241053,-490.0,0.00016438,2]
[366140472,1750084241062,-687.08,0.00016438,2]
[366140474,1750084241072,-490.0,0.00016438,2]
[366140476,1750084241083,-490.0,0.00016438,2]
[366140478,1750084241094,-490.0,0.00016438,2]
[366140480,1750084241104,-756.11,0.00016438,2]
[366140482,1750084241114,-490.0,0.00016438,2]
[366140484,1750084241124,-490.0,0.00016438,2]
[366140486,1750084241133,-490.0,0.00016438,2]
[366140488,1750084241144,-490.0,0.00016438,2]
[366140491,1750084241156,-490.0,0.00016438,2]
[366140493,1750084241166,-490.0,0.00016438,2]
[366140495,1750084241175,-490.0,0.00016438,2]
[366140497,1750084241187,-490.0,0.00016438,2]
[366140499,1750084241197,-490.0,0.00016438,2]
[366140501,1750084241207,-490.0,0.00016438,2]
[366140503,1750084241217,-490.0,0.00016438,2]
[366140505,1750084241228,-490.0,0.00016438,2]
[366140507,1750084241238,-490.0,0.00016438,2]
[366140509,1750084241248,-490.0,0.00016438,2]
[366140511,1750084241258,-490.0,0.00016438,2]
[366140513,1750084241268,-490.0,0.00016438,2]
[366140515,1750084241283,-443.41685893,0.00016438,2]
[366140518,1750084241293,-490.0,0.00016438,2]
[366140519,1750084241303,-490.0,0.00016438,2]
[366140522,1750084241314,-490.0,0.00016438,2]
[366140524,1750084241323,-490.0,0.00016438,2]
[366140526,1750084241333,-490.0,0.00016438,2]
[366140528,1750084241343,-352.37470249,0.00016438,2]
[366140530,1750084241352,-581.45,0.00016438,2]
[366140532,1750084241362,-281.74205157,0.00016438,2]
[366140534,1750084241373,-490.0,0.00016438,2]
[366140536,1750084241383,-490.0,0.00016438,2]
[366140538,1750084241393,-405.48085722,0.00016438,2]
[366140589,1750084241957,-84.51914278,0.00016438,2]
[366140590,1750084241967,-490.0,0.00016438,2]
[366140591,1750084241977,-490.0,0.00016438,2]
[366140592,1750084241989,-490.0,0.00016438,2]
[366140593,1750084242000,-490.0,0.00016438,2]
[366140595,1750084242009,-101.48085722,0.00016438,2]
[366140602,1750084242073,-388.51914278,0.00016438,2]
[366140604,1750084242084,-330.32385722,0.00016438,2]
[366140607,1750084242096,-159.67614278,0.00016438,2]
[366140609,1750084242105,-490.0,0.00016438,2]
[366140611,1750084242116,-490.0,0.00016438,2]
[366140613,1750084242125,-490.0,0.00016438,2]
[366140615,1750084242136,-490.0,0.00016438,2]
[366140617,1750084242148,-490.0,0.00016438,2]
[366140619,1750084242159,-490.0,0.00016438,2]
[366140621,1750084242169,-490.0,0.00016438,2]
[366140623,1750084242180,-490.0,0.00016438,2]
[366140625,1750084242190,-490.0,0.00016438,2]
[366140627,1750084242200,-490.0,0.00016438,2]
[366140629,1750084242210,-559.6,0.00016438,2]
[366140631,1750084242220,-636.5160334,0.00016438,2]
[366140633,1750084242232,-490.0,0.00016438,2]
[366140635,1750084242242,-812.68,0.00016438,2]
[366140637,1750084242252,-490.0,0.00016438,2]
[366140639,1750084242262,-490.0,0.00016438,2]
[366140641,1750084242272,-490.0,0.00016438,2]
[366140643,1750084242282,-772.08,0.00016438,2]
[366140645,1750084242291,-511.23,0.00016438,2]
[366140648,1750084242313,-869.49,0.00016438,2]
[366140650,1750084242325,-490.0,0.00016438,2]
[366140652,1750084242335,-490.0,0.00016438,2]
[366140654,1750084242346,-567.3,0.00016438,2]
[366140657,1750084242357,-490.0,0.00016438,2]
[366140659,1750084242367,-490.0,0.00016438,2]
[366140661,1750084242377,-490.0,0.00016438,2]
[366140663,1750084242388,-490.0,0.00016438,2]
[366140665,1750084242398,-490.0,0.00016438,2]
[366140667,1750084242408,-689.69,0.00016438,2]
[366140669,1750084242419,-738.38,0.00016438,2]
[366140671,1750084242429,-490.0,0.00016438,2]
[366140673,1750084242439,-490.0,0.00016438,2]
[366140675,1750084242449,-490.0,0.00016438,2]
[366140677,1750084242459,-490.0,0.00016438,2]
[366140679,1750084242470,-490.0,0.00016438,2]
[366140681,1750084242479,-698.51,0.00016438,2]
[366140683,1750084242490,-1043.94,0.00016438,2]
[366140685,1750084242500,-490.0,0.00016438,2]
[366140687,1750084242510,-490.0,0.00016438,2]
[366140689,1750084242521,-706.69,0.00016438,2]
[366140691,1750084242534,-490.0,0.00016438,2]
[366140693,1750084242544,-490.0,0.00016438,2]
[366140696,1750084242555,-490.0,0.00016438,2]
[366140698,1750084242565,-490.0,0.00016438,2]
[366140700,1750084242575,-1382.22,0.00016438,2]
[366140702,1750084242585,-650.75,0.00016438,2]
[366140704,1750084242596,-490.0,0.00016438,2]
[366140706,1750084242606,-490.0,0.00016438,2]
[366140708,1750084242616,-490.0,0.00016438,2]
[366140710,1750084242627,-490.0,0.00016438,2]
[366140712,1750084242637,-490.0,0.00016438,2]
[366140714,1750084242647,-490.0,0.00016438,2]
[366140716,1750084242657,-815.87,0.00016438,2]
[366140718,1750084242667,-862.51,0.00016438,2]
[366140720,1750084242678,-490.0,0.00016438,2]
[366140722,1750084242688,-490.0,0.00016438,2]
[366140724,1750084242698,-490.0,0.00016438,2]
[366140727,1750084242709,-490.0,0.00016438,2]
[366140729,1750084242719,-490.0,0.00016438,2]
[366140731,1750084242729,-490.0,0.00016438,2]
[366140733,1750084242750,-1119.97,0.00016438,2]
[366140735,1750084242762,-490.0,0.00016438,2]
[366140737,1750084242772,-1228.37,0.00016438,2]
[366140739,1750084242784,-490.0,0.00016438,2]
[366140741,1750084242794,-490.0,0.00016438,2]
[366140743,1750084242805,-490.0,0.00016438,2]
[366140746,1750084242815,-780.99,0.00016438,2]
[366140748,1750084242825,-526.45,0.00016438,2]
[366140750,1750084242835,-767.32,0.00016438,2]
[366140752,1750084242846,-490.0,0.00016438,2]
[366140754,1750084242857,-490.0,0.00016438,2]
[366140756,1750084242867,-490.0,0.00016438,2]
[366140758,1750084242878,-490.0,0.00016438,2]
[366140760,1750084242889,-287.76782383,0.00016438,2]
[366140764,1750084242918,-381.15217617,0.00016438,2]
[366140766,1750084242928,-50.73782383,0.00016438,2]
[366140839,1750084243778,-439.26217617,0.00016438,2]
[366140842,1750084243789,-490.0,0.00016438,2]
[366140845,1750084243799,-490.0,0.00016438,2]
[366140847,1750084243809,-490.0,0.00016438,2]
[366140849,1750084243820,-391.56678055,0.00016438,2]
[366140851,1750084243830,-520.05199106,0.00016438,2]
[366140861,1750084243931,-224.08800894,0.00016438,2]
[366140863,1750084243942,-692.53330643,0.00016438,2]
[366140865,1750084243956,-327.25669357,0.00016438,2]
[366140867,1750084243966,-633.12,0.00016438,2]
[366140869,1750084243976,-490.0,0.00016438,2]
[366140871,1750084243987,-490.0,0.00016438,2]
[366140873,1750084243996,-490.0,0.00016438,2]
[366140874,1750084244005,-490.0,0.00016438,2]
[366140876,1750084244015,-490.0,0.00016438,2]
[366140878,1750084244026,-490.0,0.00016438,2]
[366140880,1750084244036,-490.0,0.00016438,2]
[366140882,1750084244046,-703.7,0.00016438,2]
[366140884,1750084244055,-490.0,0.00016438,2]
[366140886,1750084244065,-490.0,0.00016438,2]
[366140888,1750084244075,-696.35,0.00016438,2]
[366140889,1750084244085,-490.0,0.00016438,2]
[366140891,1750084244096,-877.27,0.00016438,2]
[366140893,1750084244106,-813.15,0.00016438,2]
[366140895,1750084244116,-542.11,0.00016438,2]
[366140897,1750084244126,-1001.73,0.00016438,2]
[366140899,1750084244136,-688.06,0.00016438,2]
[366140901,1750084244147,-490.0,0.00016438,2]
[366140902,1750084244159,-490.0,0.00016438,2]
[366140904,1750084244170,-490.0,0.00016438,2]
[366140906,1750084244181,-490.0,0.00016438,2]
[366140908,1750084244190,-490.0,0.00016438,2]
[366140910,1750084244202,-490.0,0.00016438,2]
[366140912,1750084244212,-490.0,0.00016438,2]
[366140913,1750084244222,-490.0,0.00016438,2]
[366140915,1750084244233,-826.84,0.00016438,2]
[366140917,1750084244243,-949.63,0.00016438,2]
[366140919,1750084244253,-490.0,0.00016438,2]
[366140921,1750084244263,-490.0,0.00016438,2]
[366140923,1750084244273,-1050.12,0.00016438,2]
[366140925,1750084244283,-490.0,0.00016438,2]
[366140926,1750084244293,-490.0,0.00016438,2]
[366140928,1750084244302,-490.0,0.00016438,2]
[366140930,1750084244312,-490.0,0.00016438,2]
[366140932,1750084244323,-490.0,0.00016438,2]
[366140934,1750084244333,-490.0,0.00016438,2]
[366140935,1750084244343,-143.17890799,0.00016438,2]
[366140938,1750084244358,-346.82109201,0.00016438,2]
[366140940,1750084244370,-203.71778799,0.00016438,2]
[366140943,1750084244392,-1042.94221201,0.00016438,2]
[366140944,1750084244402,-265.56933501,0.00016438,2]
[366141118,1750084246302,-226.93066499,0.00016438,2]
[366141120,1750084246313,-490.0,0.00016438,2]
[366141122,1750084246323,-490.0,0.00016438,2]
[366141124,1750084246332,-490.0,0.00016438,2]
[366141126,1750084246342,-1682.35,0.00016438,2]
[366141128,1750084246352,-490.0,0.00016438,2]
[366141130,1750084246362,-490.0,0.00016438,2]
[366141132,1750084246371,-490.0,0.00016438,2]
[366141134,1750084246382,-679.24,0.00016438,2]
[366141136,1750084246392,-490.0,0.00016438,2]
[366141139,1750084246402,-490.0,0.00016438,2]
[366141141,1750084246411,-848.09,0.00016438,2]
[366141143,1750084246421,-490.0,0.00016438,2]
[366141145,1750084246431,-490.0,0.00016438,2]
[366141147,1750084246440,-603.62,0.00016438,2]
[366141149,1750084246450,-1890.67,0.00016438,2]
[366141151,1750084246459,-490.0,0.00016438,2]
[366141153,1750084246469,-490.0,0.00016438,2]
[366141155,1750084246479,-502.99,0.00016438,2]
[366141156,1750084246489,-903.93,0.00016438,2]
[366141158,1750084246499,-490.0,0.00016438,2]
[366141160,1750084246509,-490.0,0.00016438,2]
[366141162,1750084246519,-490.0,0.00016438,2]
[366141165,1750084246529,-490.0,0.00016438,2]
[366141167,1750084246539,-947.59,0.00016438,2]
[366141169,1750084246549,-490.0,0.00016438,2]
[366141171,1750084246559,-1511.31,0.00016438,2]
[366141173,1750084246568,-490.0,0.00016438,2]
[366141175,1750084246578,-490.0,0.00016438,2]
[366141177,1750084246588,-490.0,0.00016438,2]
[366141179,1750084246598,-490.0,0.00016438,2]
[366141181,1750084246607,-992.37,0.00016438,2]
[366141183,1750084246617,-490.0,0.00016438,2]
[366141185,1750084246627,-490.0,0.00016438,2]
[366141187,1750084246637,-1151.83,0.00016438,2]
[366141189,1750084246646,-490.0,0.00016438,2]
[366141191,1750084246656,-490.0,0.00016438,2]
[366141193,1750084246666,-768.77,0.00016438,2]
[366141195,1750084246676,-1005.57,0.00016438,2]
[366141197,1750084246686,-490.0,0.00016438,2]
[366141199,1750084246696,-1472.06,0.00016438,2]
[366141201,1750084246705,-779.01,0.00016438,2]
[366141203,1750084246716,-676.22,0.00016438,2]
[366141205,1750084246726,-490.0,0.00016438,2]
[366141207,1750084246736,-996.35,0.00016438,2]
[366141209,1750084246746,-1338.88,0.00016438,2]
[366141211,1750084246756,-490.0,0.00016438,2]
[366141213,1750084246766,-535.08,0.00016438,2]
[366141215,1750084246776,-490.0,0.00016438,2]
[366141217,1750084246786,-891.55,0.00016438,2]
[366141219,1750084246795,-588.0,0.00016438,2]
[366141221,1750084246806,-490.0,0.00016438,2]
[366141223,1750084246816,-490.0,0.00016438,2]
[366141225,1750084246826,-490.0,0.00016438,2]
[366141227,1750084246836,-490.0,0.00016438,2]
[366141229,1750084246846,-1067.67,0.00016438,2]
[366141231,1750084246856,-490.0,0.00016438,2]
[366141233,1750084246865,-490.0,0.00016438,2]
[366141235,1750084246875,-980.81,0.00016438,2]
[366141237,1750084246885,-231.4570775,0.00016438,2]
[366141239,1750084246895,-490.0,0.00016438,2]
[366141241,1750084246905,-490.0,0.00016438,2]
[366141243,1750084246914,-490.0,0.00016438,2]
[366141245,1750084246924,-595.16,0.00016438,2]
[366141247,1750084246934,-611.49,0.00016438,2]
[366141248,1750084246943,-796.64,0.00016438,2]
[366141250,1750084246954,-519.58,0.00016438,2]
[366141252,1750084246964,-1206.12,0.00016438,2]
[366141254,1750084246976,-1514.94,0.00016438,2]
[366141256,1750084246987,-330.68622944,0.00016438,2]
[366141258,1750084246997,-1758.68,0.00016438,2]
[366141260,1750084247007,-1027.89,0.00016438,2]
[366141262,1750084247016,-490.0,0.00016438,2]
[366141263,1750084247026,-490.0,0.00016438,2]
[366141265,1750084247036,-490.0,0.00016438,2]
[366141267,1750084247045,-490.0,0.00016438,2]
[366141296,1750084247324,-490.0,0.00016438,2]
[366141298,1750084247335,-490.0,0.00016438,2]
[366141300,1750084247347,-490.0,0.00016438,2]
[366141302,1750084247357,-490.0,0.00016438,2]
[366141304,1750084247367,-1530.1,0.00016438,2]
[366141306,1750084247376,-639.53,0.00016438,2]
[366141308,1750084247386,-1548.68,0.00016438,2]
[366141310,1750084247395,-895.42,0.00016438,2]
[366141312,1750084247404,-1248.17,0.00016438,2]
[366141313,1750084247413,-490.0,0.00016438,2]
[366141314,1750084247422,-490.0,0.00016438,2]
[366141315,1750084247432,-835.59,0.00016438,2]
[366141316,1750084247441,-490.0,0.00016438,2]
[366141317,1750084247450,-490.0,0.00016438,2]
[366141318,1750084247459,-566.26,0.00016438,2]
[366141319,1750084247469,-490.0,0.00016438,2]
[366141320,1750084247478,-490.0,0.00016438,2]
[366141321,1750084247487,-490.0,0.00016438,2]
[366141322,1750084247497,-490.0,0.00016438,2]
[366141323,1750084247507,-680.56,0.00016438,2]
[366141324,1750084247516,-641.31,0.00016438,2]
[366141325,1750084247526,-1486.67,0.00016438,2]
[366141326,1750084247535,-912.6,0.00016438,2]
[366141327,1750084247545,-889.32,0.00016438,2]
[366141328,1750084247554,-518.56836557,0.00016438,2]
[366141330,1750084247563,-490.0,0.00016438,2]
[366141332,1750084247573,-1167.85,0.00016438,2]
[366141334,1750084247582,-743.53,0.00016438,2]
[366141336,1750084247591,-490.0,0.00016438,2]
[366141338,1750084247602,-490.0,0.00016438,2]
[366141340,1750084247611,-490.0,0.00016438,2]
[366141342,1750084247621,-976.67,0.00016438,2]
[366141344,1750084247632,-490.0,0.00016438,2]
[366141346,1750084247641,-544.47951432,0.00016438,2]
[366141348,1750084247652,-490.0,0.00016438,2]
[366141350,1750084247661,-490.0,0.00016438,2]
[366141352,1750084247672,-490.0,0.00016438,2]
[366141355,1750084247681,-610.86,0.00016438,2]
[366141357,1750084247691,-696.09,0.00016438,2]
[366141359,1750084247701,-490.0,0.00016438,2]
[366141360,1750084247710,-795.198936,0.00016438,2]
[366141362,1750084247720,-490.0,0.00016438,2]
[366141364,1750084247730,-965.83,0.00016438,2]
[366141366,1750084247739,-539.8,0.00016438,2]
[366141368,1750084247749,-1450.3,0.00016438,2]
[366141370,1750084247759,-990.38,0.00016438,2]
[366141372,1750084247770,-1773.11,0.00016438,2]
[366141374,1750084247779,-490.0,0.00016438,2]
[366141376,1750084247789,-814.63,0.00016438,2]
[366141378,1750084247799,-881.94,0.00016438,2]
[366141380,1750084247810,-6998.55,0.00016438,2]
[366141382,1750084247819,-490.0,0.00016438,2]
[366141384,1750084247828,-490.0,0.00016438,2]
[366141386,1750084247838,-1017.53,0.00016438,2]
[366141388,1750084247847,-594.43,0.00016438,2]
[366141390,1750084247857,-490.0,0.00016438,2]
[366141392,1750084247866,-879.5,0.00016438,2]
[366141394,1750084247876,-705.30113,0.00016438,2]
[366141396,1750084247885,-936.56,0.00016438,2]
[366141398,1750084247895,-868.59,0.00016438,2]
[366141400,1750084247904,-520.54,0.00016438,2]
[366141402,1750084247914,-504.3,0.00016438,2]
[366141404,1750084247923,-961.38,0.00016438,2]
[366141406,1750084247934,-490.0,0.00016438,2]
[366141408,1750084247943,-825.69,0.00016438,2]
[366141410,1750084247953,-580.64808218,0.00016438,2]
[366141457,1750084248519,-830.13191782,0.00016438,2]
[366141460,1750084248530,-1131.87,0.00016438,2]
[366141462,1750084248540,-1308.59,0.00016438,2]
[366141464,1750084248550,-490.0,0.00016438,2]
[366141465,1750084248559,-490.0,0.00016438,2]
[366141467,1750084248570,-962.57,0.00016438,2]
[366141469,1750084248580,-723.63007759,0.00016438,2]
[366141477,1750084248647,-992.33992241,0.00016438,2]
[366141479,1750084248657,-80.36007759,0.00016438,2]
[366141481,1750084248669,-1709.2545049,0.00016438,2]
[366141663,1750084303302,600.0,0.00015068,2]
[366141664,1750084314471,1755.0,0.0002465,120]
[366141665,1750084315391,624.0,0.0002465,120]
[366141667,1750084388128,4747.072339,7.945e-05,2]
[366141668,1750084473568,594.0,0.00024657,120]
[366141669,1750084481943,5304.78,0.00015468,2]
[366141671,1750084540742,700.0,0.00013972,2]
[366141672,1750084542585,700.0,0.00015342,2]
[366141673,1750084569079,1000.0,0.00015424,2]
[366141675,1750084581327,155.1,0.00013699,2]
[366141676,1750084686966,10000.0,0.000154,2]
[366141677,1750084691864,200.0,0.00014822,2]
[366141678,1750084712850,20283.07413953,0.000154,2]
[366141679,1750084839725,150.0,0.00015401,2]
[366141680,1750084850157,2751.0,0.00015409,2]
[366141681,1750084931735,201.0,0.00014822,2]
[366141682,1750084946512,5400.016624,0.00015466,2]
[366141683,1750084961535,200.0,0.00014822,2]
[366141684,1750084978542,160.34116147,0.0002465,120]
[366141685,1750084991629,241.0,0.00014822,2]
[366141686,1750085017728,1912.29,0.0001535,2]
[366141687,1750085025690,200.0,0.00015362,2]
[366141688,1750085052064,200.0,0.00014644,2]
[366141689,1750085052338,200.0,0.00015468,3]
[366141690,1750085093063,700.0,0.00013972,2]
[366141691,1750085094683,700.0,0.00015342,2]
[366141692,1750085165236,250.0,0.00015328,2]
[366141694,1750085221563,172.55,0.00015314,2]
[366141695,1750085261775,294.85,0.00015297,2]
[366141696,1750085322052,201.0,0.00014644,2]
[366141697,1750085323197,177.97,0.00015283,2]
[366141698,1750085351825,236.0,0.00014644,2]
[366141703,1750085385391,200.0,0.00015289,2]
[366141704,1750085412762,200.0,0.00015293,2]
[366141715,1750085431478,-352.11385569,0.00015544,2]
[366141716,1750085431489,-250.0,0.00015557,2]
[366141717,1750085431499,-300.0,0.00015569,2]
[366141718,1750085431508,-300.0,0.00015594,2]
[366141719,1750085431519,-300.0,0.00015747,2]
[366141720,1750085431531,-150.51965284,0.00015799,2]
[366141721,1750085431540,-300.0,0.00015899,2]
[366141722,1750085431550,-300.0,0.00015899,2]
[366141723,1750085431563,-1200.0,0.00015899,2]
[366141724,1750085431573,-581.57,0.000159,2]
[366141725,1750085431582,-581.57,0.000159,2]
[366141726,1750085431592,-581.57,0.000159,2]
[366141727,1750085431603,-581.57,0.000159,2]
[366141728,1750085431612,-582.57,0.000159,2]
[366141729,1750085431622,-151.0,0.0001598,2]
[366141730,1750085431632,-151.0,0.00015982,2]
[366141731,1750085431642,-151.0,0.00015982,2]
[366141732,1750085431652,-151.0,0.00015982,2]
[366141733,1750085431662,-581.57,0.00016,2]
[366141734,1750085431672,-200.0,0.00016121,3]
[366141735,1750085431682,-700.0,0.00016164,2]
[366141736,1750085431691,-207.4,0.00016234,2]
[366141737,1750085431701,-7142.856,0.00016234,2]
[366141738,1750085431711,-285.89956995,0.00016289,2]
[366141739,1750085431721,-162.0,0.000163,2]
[366141740,1750085431730,-162.0,0.000163,2]
[366141741,1750085431740,-162.0,0.000163,2]
[366141742,1750085431749,-162.0,0.000163,3]
[366141743,1750085431759,-162.0,0.000163,3]
[366141744,1750085431769,-164.96,0.000163,3]
[366141745,1750085431779,-1000.0,0.000163,2]
[366141746,1750085431789,-862.02752358,0.00016315,2]
[366141747,1750085431798,-2246.13365002,0.00016316,2]
[366141748,1750085431808,-550.0,0.00016318,2]
[366141749,1750085431818,-151.0,0.00016319,2]
[366141750,1750085431828,-1000.0,0.00016319,2]
[366141751,1750085431839,-1000.0,0.00016319,2]
[366141752,1750085431849,-200.0,0.00016319,2]
[366141753,1750085431858,-1000.0,0.00016319,2]
[366141754,1750085431868,-1000.0,0.00016319,2]
[366141756,1750085431877,-1000.0,0.00016319,2]
[366141758,1750085431887,-1000.0,0.00016319,2]
[366141760,1750085431897,-1000.0,0.00016319,2]
[366141761,1750085431906,-1000.0,0.00016319,2]
[366141762,1750085431916,-1000.0,0.00016319,2]
[366141763,1750085431925,-1000.0,0.00016319,2]
[366141764,1750085431935,-1000.0,0.00016319,2]
[366141765,1750085431944,-1000.0,0.00016319,2]
[366141766,1750085431954,-1000.0,0.00016319,2]
[366141767,1750085431963,-1000.0,0.00016319,2]
[366141768,1750085431972,-1000.0,0.00016319,2]
[366141769,1750085431982,-1000.0,0.00016319,2]
[366141770,1750085431991,-1000.0,0.00016319,2]
[366141771,1750085432000,-1000.0,0.00016319,2]
[366141772,1750085432010,-1000.0,0.00016319,2]
[366141773,1750085432020,-982.40339756,0.00016319,2]
[366141774,1750085432035,-17.59660244,0.00016319,2]
[366141775,1750085432044,-151.0,0.00016319,2]
[366141776,1750085432054,-302.32,0.00016326,2]
[366141777,1750085432064,-484.0382,0.00016329,2]
[366141778,1750085432074,-500.0,0.00016329,2]
[366141779,1750085432086,-9562.6176,0.00016329,2]
[366141781,1750085432095,-4246.28587671,0.00016334,2]
[366141783,1750085432105,-157.60514066,0.00016334,2]
[366141785,1750085432114,-162.74938912,0.00016338,2]
[366141787,1750085432124,-248.86685413,0.00016338,2]
[366141788,1750085432134,-5605.0395,0.00016338,2]
[366141790,1750085432144,-587.9859,0.00016338,2]
[366141791,1750085432154,-265.67383444,0.00016374,2]